bitfinex-derivatives/quotes_ETHF0:USTF0_20250326
["timestamp","ask_amount","ask_price","bid_price","bid_amount"]
[1742956872141,2.31826,2060.4,2060.3,2.35159]
[1742956873140,2.31826,2060.4,2060.3,1.381]
[1742956874234,1.3477,2060.4,2060.3,2.35161]
[1742956874441,1.3477,2060.4,2060.3,1.381]
[1742956874641,1.3477,2060.4,2060.3,2.35161]
[1742956875944,2.31826,2060.4,2060.3,1.381]
[1742956879348,2.31826,2060.4,2060.3,2.35161]
[1742956879548,1.3477,2060.4,2060.1,4.87346855]
[1742956879741,2.32575,2060.3,2060.1,6.17286855]
[1742956879940,0.97065,2060.3,2060.1,4.18576855]
[1742956880245,0.97065,2060.3,2060.2,1.2994]
[1742956882246,0.97065,2060.3,2060.2,2.27006]
[1742956882442,0.97065,2060.3,2060.2,1.2994]
[1742956882653,0.97066,2060.2,2060.1,3.21507855]
[1742956883949,4.17846,2060.2,2060.1,0.00727855]
[1742956891251,4.87736,2060.2,2060.1,0.00727855]
[1742956893756,7.37736,2060.2,2060.1,0.00727855]
[1742956893955,4.87736,2060.2,2060.1,0.00727855]
[1742956895158,5.53656,2060.2,2060.1,0.00727855]
[1742956896258,0.97118,2059.1,2059.0,3.2078]
[1742956896565,5.63534,2059.5,2059.0,2.0]
[1742956896763,0.97118,2059.1,2059.0,2.97121]
[1742956896950,0.97118,2059.1,2059.0,0.97121]
[1742956897351,0.97117,2059.2,2059.1,0.97118]
[1742956898250,0.97117,2059.2,2059.0,0.97119]
[1742956898758,2.34507,2059.2,2059.1,1.3863]
[1742956898963,0.97117,2059.2,2059.1,1.3863]
[1742956900756,0.00727855,2059.3,2059.1,1.3863]
[1742956900757,0.00727855,2059.3,2059.2,0.97113]
[1742956900960,0.00727855,2059.3,2059.2,2.31903]
[1742956902663,0.97835855,2059.3,2059.2,1.3479]
[1742956902867,0.97835855,2059.3,2059.2,2.7457]
[1742956903068,0.97835855,2059.3,2059.2,2.0841]
[1742956903263,0.97835855,2059.3,2059.2,1.3978]
[1742956903465,3.00085855,2059.3,2059.2,1.3978]
[1742956903767,6.16685855,2059.3,2059.2,1.3978]
[1742956903966,6.16685855,2059.3,2059.0,3.2078]
[1742956903967,0.97118,2059.1,2059.0,3.2078]
[1742956904168,0.97118,2059.1,2059.0,4.4997]
[1742956904761,1.61288,2059.1,2059.0,4.4997]
[1742956907574,2.35087,2059.2,2059.0,5.47092]
[1742956907775,2.35087,2059.2,2059.1,1.3101]
[1742956908272,2.35087,2059.2,2059.0,4.17902]
[1742956908473,2.35087,2059.2,2058.8,0.00485236]
[1742956908474,0.97127,2058.9,2058.8,0.00485236]
[1742956908671,7.34607,2058.9,2058.8,0.00485236]
[1742956909268,8.04507,2058.9,2058.8,0.00485236]
[1742956911176,7.34607,2058.9,2058.8,0.00485236]
[1742956911473,4.13827,2058.9,2058.8,2.27457236]
[1742956911980,4.13827,2058.9,2058.8,1.30325236]
[1742956912280,7.34607,2058.9,2058.8,1.30325236]
[1742956912972,7.34607,2058.9,2058.8,0.00485236]
[1742956920172,9.84607,2058.9,2058.8,0.00485236]
[1742956921683,10.24109761,2058.9,2058.8,0.00485236]
[1742956928591,7.74109761,2058.9,2058.8,0.00485236]
[1742956928984,7.34607,2058.9,2058.8,0.00485236]
[1742956931179,8.69287,2058.9,2058.8,0.00485236]
[1742956933581,8.69287,2058.9,2058.8,0.64275236]
[1742956934993,8.69287,2058.9,2058.8,0.00485236]
[1742956936501,11.19287,2058.9,2058.8,2.36e-06]
[1742956937489,11.93873313,2058.9,2058.8,2.36e-06]
[1742956937791,12.01657451,2058.9,2058.8,2.36e-06]
[1742956938792,12.79170548,2058.9,2058.8,2.36e-06]
[1742956939088,12.86953898,2058.9,2058.8,2.36e-06]
[1742956939391,12.86953792,2058.9,2058.8,2.36e-06]
[1742956940690,12.86953867,2058.9,2058.8,2.36e-06]
[1742956941091,11.19287,2058.9,2058.8,2.36e-06]
[1742956941787,5.52587,2058.9,2058.8,2.36e-06]
[1742956941988,8.69287,2058.9,2058.8,2.36e-06]
[1742956945103,9.43928235,2058.9,2058.8,2.36e-06]
[1742956945387,11.93926531,2058.9,2058.8,2.36e-06]
[1742956945592,12.87032484,2058.9,2058.8,2.36e-06]
[1742956946781,12.87032432,2058.9,2058.8,2.36e-06]
[1742956947388,10.37032432,2058.9,2058.8,2.36e-06]
[1742956947588,10.29249648,2058.9,2058.8,2.36e-06]
[1742956948182,9.43926531,2058.9,2058.8,2.36e-06]
[1742956948597,8.69287,2058.9,2058.8,2.36e-06]
[1742956948894,7.34607,2058.9,2058.8,2.36e-06]
[1742956949092,2.1464,2058.9,2058.8,5.22032236]
[1742956949300,3.167,2059.2,2058.8,47.54900236]
[1742956949486,0.97122,2059.0,2058.9,1.65633]
[1742956949684,0.97122,2059.0,2058.9,3.04693]
[1742956949988,0.97122,2059.0,2058.9,2.0757]
[1742956950586,0.97122,2059.0,2058.9,3.04697]
[1742956950998,0.97119,2059.1,2059.0,0.9712]
[1742956951294,0.97122,2059.0,2058.9,1.65634]
[1742956951682,3.21507855,2059.3,2059.1,0.97115]
[1742956951683,0.97114,2059.2,2059.1,0.97115]
[1742956952090,0.97119,2059.1,2059.0,0.9712]
[1742956952490,0.97119,2059.1,2058.9,1.65633]
[1742956952692,0.97119,2059.1,2059.0,0.97122]
[1742956953797,0.97119,2059.1,2058.9,1.65634]
[1742956953987,0.97119,2059.1,2058.9,0.6851]
[1742956954186,0.97122,2059.0,2058.9,0.6851]
[1742956954806,4.17902,2059.0,2058.9,0.6851]
[1742956955192,7.34602,2059.0,2058.9,0.6851]
[1742956955394,8.70902,2059.0,2058.9,0.6851]
[1742956959703,0.97127,2058.9,2058.8,2.36e-06]
[1742956960003,3.05637,2058.9,2058.8,2.36e-06]
[1742956968409,5.55637,2058.9,2058.8,2.36e-06]
[1742956968895,3.13414645,2058.9,2058.8,2.36e-06]
[1742956969304,3.05637,2058.9,2058.8,2.36e-06]
[1742956971001,3.13414936,2058.9,2058.8,2.36e-06]
[1742956971803,3.05637,2058.9,2058.8,2.36e-06]
[1742956973407,6.26417,2058.9,2058.8,2.36e-06]
[1742956974910,8.76417,2058.9,2058.8,2.36e-06]
[1742956975107,6.34194457,2058.9,2058.8,2.36e-06]
[1742956975303,6.26417,2058.9,2058.8,2.36e-06]
[1742956977308,6.34193035,2058.9,2058.8,2.36e-06]
[1742956978413,8.84193035,2058.9,2058.8,2.36e-06]
[1742956978614,6.34193035,2058.9,2058.8,2.36e-06]
[1742956980115,0.97181,2057.8,2057.7,0.97184]
[1742956980312,0.97181,2057.8,2057.7,1.61582701]
[1742956980515,0.97178,2057.9,2057.8,0.97179]
[1742956981305,0.97173,2058.0,2057.9,0.97174]
[1742956981518,0.97173,2058.0,2057.9,2.38404]
[1742956982520,0.97173,2058.0,2057.9,1.4123]
[1742956993325,4.18674855,2058.1,2058.0,0.9717]
[1742956993516,3.21507855,2058.1,2057.9,1.4123]
[1742956994120,0.9717,2058.0,2057.9,2.38402]
[1742956994329,0.9717,2058.0,2057.9,1.4123]
[1742956994526,0.9717,2058.0,2057.9,2.38404]
[1742956994726,0.9717,2058.0,2057.9,43.18404]
[1742956997525,0.9717,2058.0,2057.9,42.2123]
[1742956998231,0.9717,2058.0,2057.9,43.18404]
[1742956998929,0.9717,2058.0,2057.9,42.2123]
[1742956999142,0.9717,2058.0,2057.9,45.27404]
[1742956999932,0.9717,2058.0,2057.9,42.2123]
[1742957000129,0.9717,2058.0,2057.9,43.62404]
[1742957000526,0.9717,2058.0,2057.9,42.2123]
[1742957000727,0.9717,2058.0,2057.9,43.18404]
[1742957003432,0.9717,2058.0,2057.9,1.4123]
[1742957003833,2.3097,2058.0,2057.9,1.4123]
[1742957008641,0.97174,2057.9,2057.8,0.6543]
[1742957008837,0.97174,2057.9,2057.8,0.17]
[1742957008838,2.98404,2057.9,2057.8,0.17]
[1742957009233,2.98404,2057.9,2057.8,1.5689]
[1742957011237,2.98404,2057.9,2057.8,0.17]
[1742957013529,0.97179,2057.8,2057.7,1.3634]
[1742957013737,0.97188,2057.6,2057.5,3.9017]
[1742957013936,0.97188,2057.6,2057.5,4.0817]
[1742957014142,0.97188,2057.6,2057.5,44.8817]
[1742957015043,0.97188,2057.6,2057.5,46.2072]
[1742957017842,0.97188,2057.6,2057.5,5.4072]
[1742957020041,0.97188,2057.6,2057.5,6.37913]
[1742957020239,0.97188,2057.6,2057.5,5.4072]
[1742957021137,0.97188,2057.6,2057.5,1.5055]
[1742957021340,0.97188,2057.6,2057.5,2.1573]
[1742957022951,0.97188,2057.6,2057.5,3.12923]
[1742957023855,0.97188,2057.7,2057.6,0.97186]
[1742957024145,3.2078,2057.8,2057.7,0.97184]
[1742957024350,3.2078,2057.8,2057.7,3.74184]
[1742957024547,3.2078,2057.8,2057.7,5.10964]
[1742957025150,4.17959,2057.8,2057.7,2.33964]
[1742957025354,4.17959,2057.8,2057.7,4.57964]
[1742957025543,4.17959,2057.8,2057.7,2.33964]
[1742957025851,4.17959,2057.8,2057.7,4.28964]
[1742957026051,4.17959,2057.8,2057.7,1.3678]
[1742957026253,5.46659,2057.8,2057.7,2.33964]
[1742957026449,5.46659,2057.8,2057.7,1.3678]
[1742957026648,0.97188,2057.6,2057.5,0.6518]
[1742957026852,0.97203,2057.3,2057.2,3.2078]
[1742957027056,1.287,2057.7,2057.1,1.66571]
[1742957027057,0.97207,2057.2,2057.1,1.66571]
[1742957029650,0.97207,2057.3,2057.2,0.97206]
[1742957031555,2.259,2057.4,2057.3,0.97203]
[1742957037054,0.97205,2057.3,2057.2,0.97203]
[1742957037254,2.29705,2057.3,2057.2,0.97203]
[1742957038363,0.97207,2057.2,2057.1,1.66568]
[1742957038660,1.3439,2057.2,2057.1,1.66568]
[1742957040361,0.97201,2057.4,2057.3,0.97203]
[1742957040565,2.31591,2057.4,2057.3,0.97203]
[1742957042557,1.3439,2057.4,2057.3,0.97203]
[1742957042763,3.8693,2057.5,2057.4,0.97198]
[1742957043172,5.281,2057.5,2057.4,0.97198]
[1742957043565,5.281,2057.5,2057.4,1.61728]
[1742957043764,6.25293,2057.5,2057.4,1.61728]
[1742957046165,3.04513,2057.5,2057.4,1.61728]
[1742957047063,2.0732,2057.5,2057.4,2.06728]
[1742957047263,1.9575,2057.7,2057.6,0.97188]
[1742957047459,2.92934,2057.7,2057.6,0.97188]
[1742957049269,1.9575,2057.7,2057.6,0.97188]
[1742957049772,2.92934,2057.7,2057.6,0.97188]
[1742957050071,0.97188,2057.6,2057.5,2.2611]
[1742957050273,2.38328,2057.6,2057.5,2.6011]
[1742957051572,2.38328,2057.6,2057.5,1.6292]
[1742957051767,5.59108,2057.6,2057.5,0.34]
[1742957052766,5.59108,2057.6,2057.5,1.6172]
[1742957053071,5.59108,2057.6,2057.5,0.34]
[1742957054873,5.59108,2057.6,2057.5,1.6355]
[1742957055379,5.59108,2057.6,2057.5,0.34]
[1742957056072,0.97198,2057.4,2057.3,1.2955]
[1742957056270,0.97203,2057.3,2057.2,2.26756]
[1742957056479,3.03493,2057.3,2057.2,2.26756]
[1742957057968,3.03493,2057.3,2057.2,1.2955]
[1742957058276,3.03493,2057.3,2057.2,2.26757]
[1742957059573,2.0629,2057.3,2057.2,2.26757]
[1742957061273,3.03493,2057.3,2057.2,2.26757]
[1742957063180,2.0629,2057.3,2057.2,1.2955]
[1742957063482,3.2078,2057.9,2057.2,4.8833]
[1742957063685,4.4586,2057.8,2057.3,1.9991]
[1742957063981,1.2926,2057.7,2057.4,1.3263]
[1742957064181,1.2926,2057.7,2057.4,4.0863]
[1742957064569,1.2926,2057.7,2057.5,1.3263]
[1742957065180,1.2926,2057.7,2057.6,0.6728]
[1742957067368,2.26444,2057.7,2057.6,1.64468]
[1742957067881,2.26444,2057.7,2057.6,0.6728]
[1742957068076,2.26444,2057.7,2057.6,1.64468]
[1742957068283,2.26444,2057.7,2057.6,3.04168]
[1742957069075,2.26444,2057.7,2057.6,2.0698]
[1742957070074,2.96554,2057.7,2057.6,1.397]
[1742957070283,1.9937,2057.7,2057.6,1.397]
[1742957070781,1.9937,2057.7,2057.4,0.6715]
[1742957070782,1.9937,2057.7,2057.1,0.6606]
[1742957070984,3.2078,2057.5,2057.4,1.356]
[1742957071176,5.1949,2057.6,2057.4,1.356]
[1742957071381,1.3308,2057.5,2057.4,1.356]
[1742957071584,4.5386,2057.5,2057.2,0.6715]
[1742957071885,4.5386,2057.5,2057.3,1.3587]
[1742957071886,0.6551,2057.4,2057.3,1.3587]
[1742957072088,2.0565,2057.4,2057.3,1.3587]
[1742957074279,3.02848,2057.4,2057.3,1.3587]
[1742957075283,3.02848,2057.4,2057.3,2.33073]
[1742957076580,3.02848,2057.4,2057.3,1.3587]
[1742957076979,3.02848,2057.4,2057.3,2.33073]
[1742957077490,1.4014,2057.4,2057.3,2.33073]
[1742957077789,0.97195,2057.5,2057.4,0.97195]
[1742957077989,0.97195,2057.5,2057.4,2.31335]
[1742957078286,2.24795,2057.5,2057.4,2.31335]
[1742957080480,2.24795,2057.5,2057.4,0.97195]
[1742957080881,2.24795,2057.5,2057.4,1.2889]
[1742957081078,2.24795,2057.5,2057.2,0.97203]
[1742957081079,0.97203,2057.3,2057.2,0.97203]
[1742957081677,2.37073,2057.3,2057.2,0.97203]
[1742957082078,1.3987,2057.3,2057.2,0.97203]
[1742957082679,2.37073,2057.3,2057.2,0.97203]
[1742957088883,0.97207,2057.2,2057.1,2.26099]
[1742957089081,2.98867,2057.2,2057.1,2.26099]
[1742957091080,2.0166,2057.2,2057.1,2.26099]
[1742957091288,2.98867,2057.2,2057.1,2.26099]
[1742957095197,2.0166,2057.2,2057.1,2.26099]
[1742957095381,2.98867,2057.2,2057.1,2.26099]
[1742957096798,0.89980661,3002.2,2057.7,0.97184]
[1742957096799,3.2078,2057.8,2057.7,0.97184]
[1742957097097,0.97189,2057.6,2057.3,3.2078]
[1742957097291,0.97193,2057.5,2057.4,2.31115]
[1742957097687,0.97193,2057.5,2057.4,2.95675]
[1742957097994,0.97193,2057.5,2057.4,1.9848]
[1742957098195,2.97963,2057.5,2057.4,1.9848]
[1742957098401,2.97963,2057.5,2057.4,1.3392]
[1742957098586,2.97963,2057.5,2057.4,2.31118]
[1742957098786,2.97963,2057.5,2057.4,1.3392]
[1742957099083,2.97963,2057.5,2057.4,2.31118]
[1742957099594,2.0077,2057.5,2057.4,2.99378]
[1742957099989,0.97187,2057.7,2057.6,0.97188]
[1742957100194,0.97187,2057.7,2057.6,1.34188]
[1742957100195,1.9586,2057.7,2057.6,1.34188]
[1742957100394,0.00727855,2058.1,2057.6,1.34188]
[1742957100395,0.97174,2058.0,2057.9,0.97174]
[1742957100588,0.97174,2058.0,2057.9,0.9717]
[1742957100589,1.2746,2058.0,2057.9,0.9717]
[1742957100800,1.2746,2058.0,2057.9,3.2617]
[1742957100994,1.2746,2058.0,2057.9,0.9717]
[1742957101188,2.2463,2058.0,2057.9,0.9717]
[1742957101502,2.2463,2058.0,2057.9,1.2791]
[1742957101998,3.70388,2058.0,2057.6,4.17968]
[1742957102293,3.70388,2058.0,2057.1,8.32628]
[1742957102294,0.97179,2057.8,2057.7,1.3665]
[1742957102504,0.97188,2057.6,2057.5,1.6217]
[1742957102797,0.97188,2057.6,2057.5,2.2017]
[1742957103701,1.2908,2057.6,2057.5,2.2017]
[1742957104194,2.26268,2057.6,2057.5,2.2017]
[1742957105096,1.2908,2057.6,2057.5,2.2017]
[1742957105603,2.26268,2057.6,2057.5,1.2298]
[1742957105797,2.26268,2057.6,2057.0,3.2078]
[1742957105798,0.97215,2057.1,2057.0,3.2078]
[1742957107402,0.97215,2057.1,2057.0,4.5527]
[1742957108804,0.97215,2057.1,2057.0,1.3449]
[1742957109003,1.68015,2057.1,2057.0,1.3449]
[1742957109200,3.00405,2057.1,2057.0,1.3449]
[1742957113110,3.00405,2057.1,2057.0,3.01997]
[1742957113611,3.00405,2057.1,2057.0,2.0478]
[1742957113819,3.00405,2057.1,2057.0,3.01997]
[1742957114210,3.00405,2057.1,2057.0,2.0478]
[1742957115211,3.00405,2057.1,2057.0,3.01997]
[1742957115618,2.0319,2057.1,2057.0,3.01997]
[1742957115813,3.00402,2057.1,2057.0,3.01997]
[1742957116317,3.00402,2057.1,2057.0,2.0478]
[1742957116516,3.00402,2057.1,2057.0,1.3449]
[1742957118618,2.43043,2057.0,2056.5,49.97237]
[1742957118822,0.97234,2056.7,2056.6,0.6676]
[1742957119318,3.2078,2056.9,2056.6,0.97234]
[1742957119622,0.97234,2056.7,2056.6,1.05236]
[1742957119823,0.97234,2056.7,2056.6,1.387]
[1742957120022,2.28364,2056.7,2056.6,1.387]
[1742957120219,2.28364,2056.7,2056.6,0.08]
[1742957120421,3.65514,2056.7,2056.6,0.08]
[1742957120724,0.97245,2056.4,2056.3,2.94667]
[1742957120921,0.97243,2056.5,2056.4,0.97243]
[1742957121120,0.97243,2056.5,2056.4,2.38013]
[1742957121416,0.97243,2056.5,2056.2,0.97252]
[1742957121621,0.97253,2056.3,2056.2,1.4077]
[1742957121923,0.97253,2056.3,2056.2,2.38025]
[1742957122112,2.98633,2056.3,2056.2,2.38025]
[1742957122617,0.97255,2056.2,2056.1,3.875]
[1742957122924,2.30945,2056.2,2056.1,5.2827]
[1742957123129,2.30945,2056.2,2056.1,4.18039]
[1742957123711,1.3369,2056.2,2056.1,4.18039]
[1742957124526,1.3369,2056.2,2056.1,6.15039]
[1742957126326,1.3369,2056.2,2056.1,4.18039]
[1742957128226,2.30945,2056.2,2056.1,4.18039]
[1742957128429,1.3369,2056.2,2056.1,6.29039]
[1742957128832,0.97241,2056.5,2056.4,0.97245]
[1742957129126,2.31861,2056.5,2056.4,4.18025]
[1742957129335,0.6736,2056.7,2056.4,4.18025]
[1742957129336,4.81094,2056.7,2056.6,0.97236]
[1742957129637,0.97236,2056.6,2056.5,3.03219]
[1742957129823,2.36076,2056.6,2056.5,3.03219]
[1742957131515,0.9724,2056.5,2056.4,3.2078]
[1742957131720,2.0841,2056.5,2056.1,4.6185]
[1742957131917,2.0841,2056.5,2056.3,0.97249]
[1742957131918,0.9725,2056.4,2056.3,0.97249]
[1742957132132,2.0742,2056.4,2056.3,0.97249]
[1742957132332,0.9725,2056.3,2056.2,1.4107]
[1742957132631,2.2829,2056.3,2056.2,1.4107]
[1742957134229,0.97255,2056.2,2056.1,3.2078]
[1742957134431,0.97259,2056.1,2056.0,1.2759]
[1742957134634,1.68069,2056.1,2056.0,1.4559]
[1742957135525,2.35289,2056.1,2056.0,2.42854]
[1742957136725,1.3803,2056.1,2056.0,2.42854]
[1742957136929,2.35289,2056.1,2056.0,2.42854]
[1742957137124,3.71629,2056.1,2056.0,2.42854]
[1742957137332,2.43096,2056.6,2056.5,0.97237]
[1742957137333,3.2078,2056.6,2056.5,0.97237]
[1742957137529,0.9725,2056.4,2056.3,0.97248]
[1742957139034,0.9725,2056.3,2056.2,2.2542]
[1742957139236,2.9771,2056.3,2056.2,2.2542]
[1742957140025,2.0046,2056.3,2056.2,2.2542]
[1742957140224,2.0046,2056.3,2056.2,2.8941]
[1742957140225,1.364,2056.3,2056.2,2.8941]
[1742957141033,2.3365,2056.3,2056.2,2.2542]
[1742957141338,1.364,2056.3,2056.2,2.2542]
[1742957141634,1.364,2056.3,2056.2,7.812]
[1742957141835,0.6406,2056.5,2056.4,0.97245]
[1742957142134,2.9324,2056.5,2056.4,0.97245]
[1742957143632,1.3194,2056.5,2056.4,0.97245]
[1742957145229,2.2918,2056.5,2056.4,0.97245]
[1742957145738,2.2918,2056.5,2056.4,1.66535]
[1742957147127,3.2078,2056.7,2056.6,0.97236]
[1742957147330,5.8844,2056.9,2056.7,0.97228]
[1742957147535,5.45432,2056.9,2056.8,1.3015]
[1742957148133,1.61142,2056.9,2056.8,2.27376]
[1742957148530,1.61142,2056.9,2056.8,1.3015]
[1742957148729,1.61142,2056.9,2056.8,2.27376]
[1742957148932,1.61142,2056.9,2056.8,1.3015]
[1742957149134,0.6392,2056.9,2056.8,4.32376]
[1742957149329,0.00727855,2057.0,2056.9,0.97222]
[1742957149531,0.97944855,2057.0,2056.9,2.30472]
[1742957149935,0.00727855,2057.0,2056.9,2.30472]
[1742957150135,0.97944855,2057.0,2056.9,2.30472]
[1742957150535,0.97944855,2057.0,2056.9,1.3325]
[1742957150741,0.97944855,2057.0,2056.9,2.30472]
[1742957151937,0.00727855,2057.0,2056.9,2.30472]
[1742957152337,0.00727855,2057.0,2056.9,4.24472]
[1742957152941,0.00727855,2057.0,2056.9,2.30472]
[1742957153339,0.00727855,2057.0,2056.9,2.68472]
[1742957154149,0.97944855,2057.0,2056.9,2.30472]
[1742957154345,1.63524855,2057.0,2056.9,2.30472]
[1742957154746,0.66307855,2057.0,2056.9,2.30472]
[1742957155147,1.63524855,2057.0,2056.9,2.30472]
[1742957155651,0.66307855,2057.0,2056.9,2.30472]
[1742957155847,0.66307855,2057.0,2056.8,0.97223]
[1742957156049,0.6933,2056.9,2056.8,1.15223]
[1742957157349,1.63527855,2057.0,2056.9,0.97222]
[1742957157548,0.66307855,2057.0,2056.9,3.03222]
[1742957158352,1.63524855,2057.0,2056.9,3.03222]
[1742957158952,1.63524855,2057.0,2056.9,0.97222]
[1742957161056,3.00874855,2057.0,2056.9,0.97222]
[1742957163759,3.00874855,2057.0,2056.9,3.19222]
[1742957163959,1.38077855,2057.0,2056.9,3.19222]
[1742957165263,2.35294855,2057.0,2056.9,3.19222]
[1742957166060,2.35294855,2057.0,2056.9,0.97222]
[1742957168159,2.35294855,2057.0,2056.9,3.32222]
[1742957168160,1.38077855,2057.0,2056.9,3.32222]
[1742957168667,0.00727855,2057.0,2056.9,3.32222]
[1742957168861,0.00727855,2057.0,2056.9,6.53002]
[1742957169552,0.00727855,2057.0,2056.9,7.22452]
[1742957169752,3.8967,2057.4,2057.3,0.97203]
[1742957169955,0.97203,2057.3,2057.2,41.77205]
[1742957170166,0.9721,2057.2,2057.1,0.97209]
[1742957170559,2.2678,2057.2,2057.1,0.97209]
[1742957170761,1.2957,2057.2,2057.1,0.97209]
[1742957171158,1.2957,2057.2,2057.1,2.34439]
[1742957171559,3.90397855,2057.4,2057.1,2.34439]
[1742957171560,3.90397855,2057.4,2057.3,0.97203]
[1742957171866,1.66815855,2057.4,2057.3,0.97203]
[1742957172360,1.66815855,2057.4,2057.3,1.64753]
[1742957172956,1.66815855,2057.4,2057.3,0.6755]
[1742957173165,0.97203,2057.3,2057.2,2.34434]
[1742957173361,2.96203,2057.3,2057.2,2.62434]
[1742957174661,2.96203,2057.3,2057.2,1.6523]
[1742957175167,0.97228,2056.8,2056.7,0.97227]
[1742957175462,0.97228,2056.8,2056.7,2.45877]
[1742957176365,2.24864,2056.9,2056.8,0.97226]
[1742957176565,2.24864,2056.9,2056.8,2.82876]
[1742957177467,2.24864,2056.9,2056.8,1.8565]
[1742957177868,2.24864,2056.9,2056.8,2.82876]
[1742957178369,2.94474,2056.9,2056.8,2.82876]
[1742957181060,1.9725,2056.9,2056.8,2.82876]
[1742957181260,4.17993,2057.1,2057.0,0.97217]
[1742957182873,4.17993,2057.1,2057.0,2.29357]
[1742957184365,2.32479,2057.2,2057.1,0.97212]
[1742957184560,1.3527,2057.2,2057.1,2.28072]
[1742957184968,1.3527,2057.2,2056.7,3.2078]
[1742957185170,0.97226,2056.8,2056.7,1.49229]
[1742957186571,2.93915,2056.9,2056.8,0.97226]
[1742957186777,2.93915,2056.9,2056.8,1.51226]
[1742957187379,2.93915,2056.9,2056.8,0.54]
[1742957187877,2.93915,2056.9,2056.8,1.51226]
[1742957188077,2.93915,2056.9,2056.8,0.54]
[1742957189776,2.93915,2056.9,2056.8,1.51226]
[1742957189977,2.93915,2056.9,2056.8,0.54]
[1742957190172,6.14695,2056.9,2056.8,0.54]
[1742957190779,0.97236,2056.6,2056.5,0.6497]
[1742957191174,0.97236,2056.6,2056.5,1.6221]
[1742957191474,0.97236,2056.6,2056.5,1.62207]
[1742957191773,0.97236,2056.6,2056.5,0.6497]
[1742957191984,0.97267,2056.0,2055.9,0.97265]
[1742957192182,0.97267,2056.0,2055.9,1.69235]
[1742957192374,5.63913,2056.3,2055.9,1.69235]
[1742957192375,0.97263,2056.1,2056.0,0.97262]
[1742957192571,0.97263,2056.1,2056.0,0.07]
[1742957192775,0.97264,2056.0,2055.9,41.4497]
[1742957193378,2.26344,2056.0,2055.9,41.4497]
[1742957193973,2.26344,2056.0,2055.9,40.8]
[1742957194178,2.26344,2056.0,2055.9,41.77269]
[1742957194684,2.26344,2056.0,2055.9,42.17269]
[1742957195383,1.2908,2056.0,2055.9,42.17269]
[1742957196184,2.26344,2056.0,2055.9,42.17269]
[1742957199884,0.97263,2056.1,2056.0,0.97262]
[1742957200088,0.00727855,2056.2,2056.1,0.97259]
[1742957200292,2.43058,2056.9,2056.3,2.43126]
[1742957200293,4.83893,2056.9,2056.3,2.43126]
[1742957200476,1.3305,2056.8,2056.7,0.97231]
[1742957200787,0.97231,2056.7,2056.4,3.75384]
[1742957200991,0.97231,2056.7,2056.6,1.3613]
[1742957201189,1.3305,2056.8,2056.6,2.33361]
[1742957201385,2.3028,2056.8,2056.7,0.97231]
[1742957201681,1.3305,2056.8,2056.7,2.33361]
[1742957201877,2.30276,2056.8,2056.7,2.33361]
[1742957202885,1.3305,2056.8,2056.7,2.33361]
[1742957203073,1.3305,2056.8,2056.7,4.53361]
[1742957204087,1.3305,2056.8,2056.7,2.33361]
[1742957204295,1.3305,2056.8,2056.7,4.69361]
[1742957205287,0.00727855,2056.9,2056.8,0.97226]
[1742957205489,0.00727855,2056.9,2056.8,2.98926]
[1742957206082,0.00727855,2056.9,2056.8,8.16706]
[1742957206283,0.00727855,2056.9,2056.8,6.19706]
[1742957206575,0.00727855,2056.9,2056.8,8.33706]
[1742957206890,0.00727855,2056.9,2056.8,49.13706]
[1742957209183,3.2078,2057.2,2057.1,0.97212]
[1742957209385,4.17987,2057.2,2057.1,0.1]
[1742957209688,4.17987,2057.2,2057.1,1.3813]
[1742957210789,4.88307,2057.2,2057.1,2.35342]
[1742957210990,4.88307,2057.2,2057.1,1.3813]
[1742957213193,4.88307,2057.2,2057.1,0.1]
[1742957213994,4.88307,2057.2,2057.1,1.4372]
[1742957216089,4.88307,2057.2,2057.1,2.40932]
[1742957217590,3.911,2057.2,2057.1,2.40932]
[1742957217790,3.2078,2057.2,2057.1,2.40932]
[1742957218186,4.5292,2057.2,2057.1,2.40932]
[1742957218396,1.3214,2057.2,2057.1,2.40932]
[1742957218586,0.00727855,2057.4,2057.3,0.97203]
[1742957218793,0.00727855,2057.4,2057.3,3.56203]
[1742957218993,0.97925855,2057.4,2057.3,3.56203]
[1742957219296,1.32867855,2057.4,2057.3,5.60413]
[1742957220092,0.00727855,2057.4,2057.3,5.60413]
[1742957220600,2.30065855,2057.4,2057.3,4.6321]
[1742957220989,3.62695855,2057.4,2057.3,2.59]
[1742957221188,3.62695855,2057.4,2056.9,0.97218]
[1742957221189,2.43009,2057.3,2056.9,0.97218]
[1742957221389,0.97217,2057.0,2056.9,1.6397]
[1742957221798,0.97217,2057.0,2056.9,2.61192]
[1742957222096,0.97217,2057.0,2056.9,1.6397]
[1742957222301,2.29847,2057.0,2056.9,1.6397]
[1742957223196,2.29847,2057.0,2056.9,2.61192]
[1742957223393,2.29847,2057.0,2056.9,1.6397]
[1742957223596,0.97222,2056.9,2056.8,40.8]
[1742957223794,2.26272,2056.9,2056.8,42.1522]
[1742957224097,0.97226,2056.8,2056.7,3.2078]
[1742957224294,2.26276,2056.8,2056.7,4.56]
[1742957224496,2.26276,2056.8,2056.7,5.53231]
[1742957224903,2.26276,2056.8,2056.7,2.32451]
[1742957225194,1.2905,2056.8,2056.7,2.32451]
[1742957225698,1.2905,2056.8,2056.7,2.72451]
[1742957226096,0.97215,2057.1,2056.7,1.7522]
[1742957226295,0.97205,2057.3,2057.2,0.97206]
[1742957226600,2.26255,2057.3,2057.2,0.97206]
[1742957226805,1.2905,2057.3,2057.2,3.19206]
[1742957227297,2.26253,2057.3,2057.2,3.19206]